bitfinex/quotes_SOLUSD_20240613
["timestamp","ask_amount","ask_price","bid_price","bid_amount"]
[1718250632431,0.818979,151.52,151.48,0.17]
[1718250632739,0.818979,151.52,151.47,16.2431]
[1718250634815,0.818979,151.52,151.45,6.0708]
[1718250635134,0.818979,151.52,151.43,15.777]
[1718250636543,0.818979,151.52,151.44,0.68]
[1718250636932,0.818979,151.52,151.46,0.17]
[1718250637265,0.818979,151.52,151.47,16.4404]
[1718250637538,0.818979,151.52,151.48,0.68]
[1718250640741,0.818979,151.52,151.43,15.2246]
[1718250642839,8.37,151.5,151.45,8.37]
[1718250643041,8.37,151.5,151.46,0.51]
[1718250643338,0.818979,151.52,151.46,0.34]
[1718250643535,8.37,151.49,151.46,0.17]
[1718250643841,8.37,151.49,151.43,23.5946]
[1718250644032,8.37,151.48,151.43,15.2246]
[1718250644231,8.37,151.47,151.43,15.2246]
[1718250644822,0.818979,151.52,151.43,15.2246]
[1718250645021,20.818979,151.52,151.43,15.2246]
[1718250645220,20.818979,151.52,151.4,6.4142]
[1718250646454,20.818979,151.52,151.41,0.34]
[1718250646665,20.818979,151.52,151.42,0.51]
[1718250646956,20.818979,151.52,151.43,0.34]
[1718250647121,0.818979,151.52,151.45,0.17]
[1718250647447,0.818979,151.52,151.45,0.34]
[1718250647638,0.818979,151.52,151.46,0.34]
[1718250647950,0.818979,151.52,151.47,0.34]
[1718250648125,0.818979,151.52,151.48,0.34]
[1718250648833,0.818979,151.52,151.49,0.17]
[1718250649231,0.818979,151.52,151.48,0.34]
[1718250649425,0.818979,151.52,151.49,0.17]
[1718250653030,0.818979,151.52,151.49,0.34]
[1718250653526,0.818979,151.52,151.49,0.17]
[1718250653728,0.818979,151.52,151.49,0.34]
[1718250654044,0.818979,151.52,151.49,0.17]
[1718250657433,0.818979,151.52,151.48,0.34]
[1718250657956,0.818979,151.52,151.4,93.13625821]
[1718250659728,0.818979,151.52,151.41,0.17]
[1718250659928,0.818979,151.52,151.41,0.68]
[1718250665064,8.37,151.49,151.44,8.37]
[1718250665240,8.37,151.49,151.46,0.17]
[1718250665442,8.37,151.47,151.4,15.861]
[1718250665641,6.3639,151.5,151.4,15.861]
[1718250665642,8.37,151.45,151.4,24.231]
[1718250665938,6.3639,151.5,151.4,24.231]
[1718250665939,8.37,151.46,151.4,24.231]
[1718250666840,8.37,151.45,151.4,15.861]
[1718250667067,8.37,151.44,151.38,8.37]
[1718250667358,8.37,151.46,151.4,8.37]
[1718250668250,8.37,151.46,151.41,0.17]
[1718250668564,8.37,151.46,151.41,0.68]
[1718250669063,8.37,151.45,151.41,0.68]
[1718250670340,8.37,151.46,151.41,0.68]
[1718250670865,8.37,151.46,151.41,9.05]
[1718250671539,22.1371,151.5,151.43,0.17]
[1718250671757,8.37,151.48,151.43,0.68]
[1718250672064,8.37,151.47,151.43,0.68]
[1718250672645,8.37,151.48,151.43,9.05]
[1718250673485,22.1371,151.5,151.43,9.05]
[1718250673665,8.37,151.49,151.43,9.05]
[1718250675051,22.1371,151.5,151.43,0.68]
[1718250675452,8.37,151.49,151.43,9.05]
[1718250675848,8.37,151.5,151.44,8.37]
[1718250676047,8.37,151.5,151.45,0.68]
[1718250677276,0.818979,151.52,151.45,0.68]
[1718250677460,8.37,151.51,151.45,9.05]
[1718250678065,8.37,151.5,151.45,9.05]
[1718250678967,8.37,151.5,151.45,0.68]
[1718250679358,8.37,151.49,151.45,0.68]
[1718250680378,8.37,151.49,151.37,100.0]
[1718250680379,8.37,151.46,151.37,15.4639]
[1718250680675,8.37,151.46,151.41,8.37]
[1718250681259,34.298979,151.52,151.43,8.37]
[1718250681462,8.37,151.48,151.43,8.37]
[1718250681675,8.37,151.48,151.44,0.17]
[1718250681869,8.37,151.49,151.44,9.05]
[1718250682384,8.37,151.5,151.46,0.17]
[1718250682577,8.37,151.5,151.46,0.51]
[1718250684384,8.37,151.49,151.46,0.34]
[1718250684571,8.37,151.49,151.45,0.34]
[1718250684880,8.37,151.48,151.37,15.4639]
[1718250685055,8.37,151.48,151.42,8.37]
[1718250685255,8.37,151.48,151.43,8.37]
[1718250685478,9.188979,151.52,151.43,8.37]
[1718250685678,20.0,151.51,151.43,8.37]
[1718250686075,8.37,151.49,151.44,0.51]
[1718250686288,0.818979,151.52,151.45,0.34]
[1718250686289,8.37,151.5,151.45,0.34]
[1718250686586,0.818979,151.52,151.47,0.17]
[1718250686790,8.37,151.5,151.47,0.17]
[1718250689590,0.818979,151.52,151.47,0.17]
[1718250689960,8.37,151.51,151.47,0.17]
[1718250690187,8.37,151.5,151.47,0.17]
[1718250690495,0.818979,151.52,151.47,0.17]
[1718250690496,8.37,151.51,151.47,0.17]
[1718250690859,8.37,151.5,151.47,0.17]
[1718250691860,0.818979,151.52,151.47,0.17]
[1718250692070,0.818979,151.52,151.47,8.71]
[1718250692271,0.818979,151.52,151.49,0.17]
[1718250692478,9.188979,151.52,151.49,0.17]
[1718250695779,9.188979,151.52,151.48,0.34]
[1718250695780,8.37,151.51,151.48,0.34]
[1718250696493,9.188979,151.52,151.43,16.4107]
[1718250696698,9.188979,151.52,151.43,24.7807]
[1718250696699,8.37,151.48,151.43,24.7807]
[1718250697068,8.37,151.5,151.43,16.4107]
[1718250697271,8.37,151.5,151.44,8.37]
[1718250697582,8.37,151.5,151.45,8.37]
[1718250698101,8.37,151.49,151.46,0.17]
[1718250698468,8.37,151.48,151.46,0.17]
[1718250699265,0.818979,151.52,151.46,0.17]
[1718250699493,8.37,151.49,151.46,0.17]
[1718250705301,8.37,151.49,151.42,6.4422]
[1718250705475,8.37,151.47,151.41,24.9151]
[1718250706683,8.37,151.47,151.42,0.34]
[1718250706990,8.37,151.47,151.43,0.51]
[1718250707295,8.37,151.47,151.44,0.34]
[1718250707702,8.37,151.47,151.44,0.17]
[1718250707909,8.37,151.47,151.43,0.34]
[1718250708490,8.37,151.47,151.43,0.17]
[1718250708691,8.37,151.47,151.43,0.34]
[1718250709112,8.37,151.47,151.38,6.0377]
[1718250709113,8.37,151.45,151.38,6.0377]
[1718250709277,8.37,151.45,151.39,8.37]
[1718250709692,8.37,151.45,151.4,1.32081037]
[1718250709887,8.37,151.45,151.4,9.69081037]
[1718250710080,8.37,151.45,151.4,8.37]
[1718250710490,8.37,151.45,151.41,0.51]
[1718250713217,8.37,151.48,151.42,8.37]
[1718250713523,8.37,151.48,151.44,0.17]
[1718250717292,34.298979,151.52,151.44,0.17]
[1718250717494,8.37,151.48,151.44,0.17]
[1718250719821,20.0,151.51,151.44,0.17]
[1718250720026,8.37,151.48,151.44,0.17]
[1718250723831,8.37,151.46,151.38,6.0377]
[1718250724125,8.37,151.46,151.4,8.37]
[1718250725023,20.0,151.51,151.38,6.0377]
[1718250725332,8.37,151.44,151.39,8.37]
[1718250726405,8.37,151.45,151.39,8.37]
[1718250726607,8.37,151.45,151.41,0.17]
[1718250726902,0.818979,151.52,151.44,0.17]
[1718250727123,8.37,151.51,151.45,8.37]
[1718250727450,0.818979,151.52,151.46,0.17]
[1718250727605,8.37,151.51,151.46,0.51]
[1718250728235,0.818979,151.52,151.46,0.51]
[1718250728543,8.37,151.51,151.46,0.51]
[1718250728921,0.818979,151.52,151.46,0.51]
[1718250729231,8.37,151.51,151.46,0.51]
[1718250730303,0.818979,151.52,151.46,0.51]
[1718250730504,0.818979,151.52,151.49,0.17]
[1718250730747,0.818979,151.52,151.49,0.68]
[1718250731615,0.818979,151.52,151.49,0.51]
[1718250731824,8.37,151.5,151.44,6.2108]
[1718250732022,8.37,151.5,151.44,14.5808]
[1718250732617,0.818979,151.52,151.44,14.5808]
[1718250732836,8.37,151.5,151.44,14.5808]
[1718250733017,8.37,151.48,151.4,6.0209]
[1718250733339,8.37,151.48,151.42,8.37]
[1718250734238,15.5872,151.51,151.4,8.37]
[1718250734440,8.37,151.47,151.42,8.37]
[1718250735322,0.818979,151.52,151.43,15.9175]
[1718250735519,0.818979,151.52,151.45,0.17]
[1718250735724,8.37,151.49,151.45,0.17]
[1718250735933,0.818979,151.52,151.45,0.17]
[1718250736138,8.37,151.5,151.45,0.17]
[1718250736315,0.818979,151.52,151.45,0.17]
[1718250736521,8.37,151.5,151.45,8.54]
[1718250736721,8.37,151.5,151.47,0.17]
[1718250737138,0.818979,151.52,151.47,0.17]
[1718250737321,9.188979,151.52,151.47,0.17]
[1718250738421,0.818979,151.52,151.47,0.17]
[1718250738640,8.37,151.51,151.47,0.17]
[1718250739223,0.818979,151.52,151.43,15.7475]
[1718250739224,8.37,151.48,151.43,15.7475]
[1718250739418,8.37,151.47,151.43,15.7475]
[1718250740052,34.298979,151.52,151.43,15.7475]
[1718250740228,8.37,151.48,151.43,24.1175]
[1718250740544,8.37,151.49,151.43,24.1175]
[1718250741850,9.188979,151.52,151.44,0.34]
[1718250742144,9.188979,151.52,151.46,8.37]
[1718250742348,9.188979,151.52,151.47,0.34]
[1718250742825,9.188979,151.52,151.48,0.17]
[1718250745751,9.188979,151.52,151.47,0.34]
[1718250745957,8.37,151.48,151.44,0.17]
[1718250746129,8.37,151.47,151.44,0.17]
[1718250746453,8.37,151.46,151.41,8.37]
[1718250746661,34.298979,151.52,151.41,8.37]
[1718250746824,20.0,151.51,151.42,8.37]
[1718250747023,8.37,151.47,151.41,8.37]
[1718250747225,20.0,151.51,151.41,8.37]
[1718250747450,8.37,151.47,151.41,8.37]
[1718250747644,20.0,151.51,151.42,0.17]
[1718250747840,34.298979,151.52,151.42,9.05]
[1718250748051,20.0,151.51,151.42,9.05]
[1718250748249,8.37,151.48,151.42,9.05]
[1718250748565,0.818979,151.52,151.42,9.05]
[1718250748754,0.818979,151.52,151.46,0.17]
[1718250749054,9.188979,151.52,151.46,9.05]
[1718250749936,8.37,151.51,151.46,9.05]
[1718250750450,8.37,151.51,151.46,0.68]
[1718250750863,0.818979,151.52,151.46,0.68]
[1718250752865,0.818979,151.52,151.46,0.34]
[1718250753065,0.818979,151.52,151.47,0.34]
[1718250753265,0.818979,151.52,151.46,0.17]
[1718250753473,0.818979,151.52,151.46,0.68]
[1718250758956,0.818979,151.52,151.45,16.6353]
[1718250760463,0.818979,151.52,151.46,0.68]
[1718250762357,0.818979,151.52,151.47,6.3726]
[1718250762559,0.818979,151.52,151.48,0.68]
[1718250770891,0.818979,151.52,151.49,8.37]
[1718250771075,0.818979,151.52,151.5,0.51]
[1718250780296,0.818979,151.52,151.51,8.54]
[1718250780495,0.818979,151.52,151.51,8.88]
[1718250780867,0.818979,151.52,151.51,9.05]
[1718250781078,0.818979,151.52,151.51,25.7022]
[1718250794603,0.818979,151.52,151.51,17.3322]
[1718250794806,0.818979,151.52,151.51,25.7022]
[1718250796113,0.818979,151.52,151.51,106.31624832]
[1718250796293,22.0356,151.63,151.53,2.4417]
[1718250796486,30.4056,151.63,151.59,0.17]
[1718250796695,30.4056,151.63,151.59,0.51]
[1718250798107,22.0356,151.63,151.59,0.51]
[1718250798307,30.4056,151.63,151.59,0.51]
[1718250800822,8.37,151.62,151.59,0.17]
[1718250801011,8.37,151.62,151.58,0.51]
[1718250801703,8.37,151.61,151.57,0.17]
[1718250802439,8.37,151.62,151.57,8.54]
[1718250802727,8.37,151.62,151.57,0.17]
[1718250802923,8.37,151.62,151.57,0.34]
[1718250803328,8.37,151.62,151.57,8.71]
[1718250803795,8.37,151.61,151.57,0.17]
[1718250803999,8.37,151.6,151.56,0.34]
[1718250804205,8.37,151.6,151.56,0.17]
[1718250805725,8.37,151.61,151.56,8.71]
[1718250806237,22.0356,151.63,151.57,0.17]
[1718250806403,8.37,151.62,151.57,8.88]
[1718250806739,39.58006666,151.68,151.58,8.37]
[1718250806740,21.9515,151.67,151.58,8.37]
[1718250807038,8.37,151.63,151.59,0.17]
[1718250807202,8.37,151.62,151.59,0.17]
[1718250807634,8.37,151.62,151.58,0.17]
[1718250807818,8.37,151.62,151.58,0.34]
[1718250808003,8.37,151.62,151.58,0.17]
[1718250808211,8.37,151.61,151.57,0.17]
[1718250808519,20.0,151.66,151.57,0.51]
[1718250808835,8.37,151.62,151.57,8.88]
[1718250810537,20.0,151.66,151.58,8.37]
[1718250810736,20.0,151.66,151.6,0.17]
[1718250811208,8.37,151.65,151.6,0.17]
[1718250811916,20.0,151.66,151.6,0.17]
[1718250812115,21.9515,151.67,151.6,0.17]
[1718250812327,24.3107,151.67,151.62,0.17]
[1718250812640,24.3107,151.67,151.62,0.51]
[1718250813143,8.37,151.66,151.62,0.51]
[1718250813683,15.9407,151.67,151.62,0.51]
[1718250813951,24.3107,151.67,151.62,0.51]
[1718250814108,0.818979,151.68,151.62,0.51]
[1718250814312,0.818979,151.68,151.64,0.17]
[1718250814515,9.188979,151.68,151.64,0.51]
[1718250814926,8.37,151.67,151.64,0.51]
[1718250815114,8.37,151.67,151.61,8.37]
[1718250815314,8.37,151.67,151.62,0.68]
[1718250816841,8.37,151.66,151.6,8.54]
[1718250817054,8.37,151.66,151.61,0.51]
[1718250817215,0.818979,151.68,151.62,0.17]
[1718250817435,8.37,151.66,151.62,0.17]
[1718250817853,0.818979,151.68,151.63,8.37]
[1718250818139,9.188979,151.68,151.63,8.37]
[1718250819037,0.818979,151.68,151.64,0.51]
[1718250819245,0.818979,151.68,151.64,8.88]
[1718250819457,0.818979,151.68,151.64,8.54]
[1718250821783,0.818979,151.68,151.64,0.17]
[1718250822062,0.818979,151.68,151.65,8.37]
[1718250822564,0.818979,151.68,151.66,0.51]
[1718250822939,0.818979,151.68,151.66,8.88]
[1718250826678,0.818979,151.68,151.66,0.51]
[1718250827254,0.818979,151.68,151.67,8.54]
[1718250827464,0.818979,151.68,151.67,8.88]
[1718250828370,0.818979,151.68,151.67,9.05]
[1718250828764,0.818979,151.68,151.67,0.68]
[1718250829065,0.818979,151.68,151.67,8.88]
[1718250829449,0.818979,151.68,151.67,9.05]
[1718250831649,0.818979,151.68,151.67,0.68]
[1718250831850,0.818979,151.68,151.67,9.05]
[1718250832676,0.818979,151.68,151.67,0.68]
[1718250832860,0.818979,151.68,151.67,9.05]
[1718250833258,0.818979,151.68,151.67,0.68]
[1718250833569,0.818979,151.68,151.67,9.05]
[1718250833773,0.818979,151.68,151.62,15.6928]
[1718250833978,0.818979,151.68,151.63,8.37]
[1718250834164,9.188979,151.68,151.63,8.37]
[1718250834693,9.188979,151.68,151.62,15.6928]
[1718250834990,0.818979,151.68,151.63,8.37]
[1718250835162,9.188979,151.68,151.63,8.37]
[1718250835489,9.188979,151.68,151.64,8.37]
[1718250835490,0.818979,151.68,151.64,8.37]
[1718250835661,0.818979,151.68,151.62,16.2028]
[1718250835988,0.818979,151.68,151.64,8.37]
[1718250836158,0.818979,151.68,151.65,8.71]
[1718250836365,0.818979,151.68,151.65,8.54]
[1718250836662,0.818979,151.68,151.66,0.17]
[1718250837355,0.818979,151.68,151.66,0.34]
[1718250837795,0.818979,151.68,151.64,8.54]
[1718250837991,0.818979,151.68,151.64,8.37]
[1718250838487,0.818979,151.68,151.63,0.51]
[1718250838782,0.818979,151.68,151.64,8.37]
[1718250839295,0.818979,151.68,151.66,8.54]
[1718250839666,0.818979,151.68,151.66,8.37]
[1718250840857,0.818979,151.68,151.65,8.37]
[1718250842192,0.818979,151.68,151.64,0.34]
[1718250842360,0.818979,151.68,151.64,8.54]
[1718250842555,0.818979,151.68,151.62,15.6928]
[1718250842556,0.818979,151.68,151.6,6.2218]
[1718250842783,9.188979,151.68,151.63,8.37]
[1718250844186,0.818979,151.68,151.64,8.71]
[1718250844386,0.818979,151.68,151.64,8.54]
[1718250845063,0.818979,151.68,151.64,0.34]
[1718250845459,0.818979,151.68,151.64,8.71]
[1718250846889,0.818979,151.68,151.65,8.37]
[1718250847090,0.818979,151.68,151.64,8.54]
[1718250848738,0.818979,151.68,151.65,8.37]
[1718250848874,0.818979,151.68,151.66,8.37]
[1718250849901,0.818979,151.68,151.67,8.37]
[1718250850080,0.818979,151.68,151.67,0.34]
[1718250850499,0.818979,151.68,151.64,0.17]
[1718250850704,0.818979,151.68,151.64,0.34]
[1718250851075,9.188979,151.68,151.62,8.37]
[1718250851411,0.818979,151.68,151.63,8.37]
[1718250851578,9.188979,151.68,151.63,8.37]
[1718250852085,0.818979,151.68,151.64,8.37]
[1718250854481,0.818979,151.68,151.63,0.68]
[1718250854793,0.818979,151.68,151.65,8.37]
[1718250855223,0.818979,151.68,151.66,8.37]
[1718250855593,0.818979,151.68,151.65,0.51]
[1718250855796,0.818979,151.68,151.67,8.37]
[1718250856005,0.818979,151.68,151.66,8.37]
[1718250856992,0.818979,151.68,151.67,0.17]
[1718250857190,0.818979,151.68,151.67,0.51]
[1718250857402,0.818979,151.68,151.67,8.88]
[1718250857610,0.818979,151.68,151.65,0.17]
[1718250857817,0.818979,151.68,151.67,8.37]
[1718250858426,0.818979,151.68,151.67,0.17]
[1718250858605,0.818979,151.68,151.67,8.54]
[1718250860426,0.818979,151.68,151.67,8.37]
[1718250860626,0.818979,151.68,151.66,0.34]
[1718250860932,0.818979,151.68,151.67,8.37]
[1718250863432,0.818979,151.68,151.66,0.17]
[1718250863607,0.818979,151.68,151.65,8.54]
[1718250864109,0.818979,151.68,151.64,8.37]
[1718250864305,9.188979,151.68,151.63,8.37]
[1718250864906,0.818979,151.68,151.64,8.37]
[1718250865615,0.818979,151.68,151.65,8.54]
[1718250866136,0.818979,151.68,151.65,0.17]
[1718250866305,0.818979,151.68,151.66,0.17]
[1718250866506,0.818979,151.68,151.66,9.05]
[1718250867009,0.818979,151.68,151.66,0.68]
[1718250867227,0.818979,151.68,151.66,0.17]
[1718250867417,0.818979,151.68,151.65,8.37]
[1718250867617,0.818979,151.68,151.64,0.51]
[1718250867813,0.818979,151.68,151.64,8.88]
[1718250868013,0.818979,151.68,151.64,0.51]
[1718250868227,0.818979,151.68,151.65,8.37]
[1718250869126,0.818979,151.68,151.64,0.51]
[1718250869624,0.818979,151.68,151.65,8.37]
[1718250869821,0.818979,151.68,151.64,0.51]
[1718250870047,9.188979,151.68,151.59,16.2456]
[1718250870834,9.188979,151.68,151.63,8.37]
[1718250871506,0.818979,151.68,151.63,8.37]
[1718250871722,0.818979,151.68,151.64,8.54]
[1718250871926,0.818979,151.68,151.66,0.17]
[1718250872117,0.818979,151.68,151.66,8.54]
[1718250872638,0.818979,151.68,151.67,8.88]
[1718250873240,0.818979,151.68,151.67,0.17]
[1718250873450,0.818979,151.68,151.66,8.71]
[1718250875246,0.818979,151.68,151.65,0.17]
[1718250875422,0.818979,151.68,151.65,8.37]
[1718250876824,0.818979,151.68,151.67,8.37]
[1718250877235,0.818979,151.68,151.66,0.17]
[1718250877415,0.818979,151.68,151.65,0.34]
[1718250877615,0.818979,151.68,151.65,8.37]
[1718250879620,0.818979,151.68,151.66,0.17]
[1718250879923,0.818979,151.68,151.66,8.88]
[1718250880141,0.818979,151.68,151.66,8.71]
[1718250880319,0.818979,151.68,151.66,8.54]
[1718250880520,0.818979,151.68,151.65,0.17]
[1718250880848,0.818979,151.68,151.65,8.37]
[1718250883545,0.818979,151.68,151.66,8.37]
[1718250888448,0.818979,151.68,151.59,115.45089778]
[1718250888623,8.37,151.67,151.59,16.2456]
[1718250888827,23.447379,151.68,151.63,8.37]
[1718250889226,23.447379,151.68,151.64,8.37]
[1718250889449,23.447379,151.68,151.65,8.37]
[1718250889750,0.818979,151.68,151.65,8.37]
[1718250890059,0.818979,151.68,151.66,8.37]
[1718250890644,0.818979,151.68,151.67,8.37]
[1718250894455,0.818979,151.68,151.66,8.37]
[1718250895260,0.818979,151.68,151.65,0.34]
[1718250895464,0.818979,151.68,151.66,8.54]
[1718250896864,0.818979,151.68,151.65,0.34]
[1718250897164,0.818979,151.68,151.65,8.54]
[1718250897481,0.818979,151.68,151.65,8.37]
[1718250897642,0.818979,151.68,151.59,16.2456]
[1718250897842,0.818979,151.68,151.64,8.37]
[1718250898149,0.818979,151.68,151.6,33.48]
[1718250898357,0.818979,151.68,151.64,8.37]
[1718250900273,15.8681,151.67,151.62,8.37]
[1718250901063,24.2381,151.67,151.62,8.37]
[1718250901248,15.8681,151.67,151.63,8.37]
[1718250901666,24.2381,151.67,151.57,6.0549]
[1718250901845,8.37,151.64,151.55,15.8561]
[1718250902051,9.89558708,151.6,151.58,8.37]
[1718250902253,9.89558708,151.59,151.55,15.8561]
[1718250902547,9.89558708,151.58,151.51,22.23488313]
[1718250902752,9.89558708,151.56,151.51,15.2249]
[1718250903046,18.26558708,151.56,151.46,22.23488313]
[1718250903250,9.89558708,151.55,151.51,8.37]
[1718250903554,9.89558708,151.55,151.46,22.23488313]
[1718250903555,9.89558708,151.55,151.53,8.37]
[1718250903789,9.89558708,151.56,151.46,27.51208483]
[1718250903950,6.0281,151.6,151.53,8.37]
[1718250903951,9.89558708,151.55,151.53,8.37]
[1718250904345,9.89558708,151.56,151.53,8.37]
[1718250904564,9.89558708,151.56,151.52,8.37]
[1718250904745,8.37,151.54,151.46,15.2249]
[1718250904944,18.26558708,151.54,151.49,8.37]
[1718250905247,9.89558708,151.54,151.49,8.37]
[1718250905445,9.89558708,151.54,151.5,8.37]
[1718250905647,25.62088708,151.55,151.5,8.37]
[1718250905849,25.62088708,151.55,151.45,19.62628722]
[1718250905850,6.087,151.54,151.45,19.62628722]
[1718250906054,6.087,151.54,151.48,8.37]
[1718250906055,14.457,151.54,151.48,8.37]
[1718250906269,14.457,151.54,151.49,8.37]
[1718250906570,6.087,151.54,151.5,8.37]
[1718250907379,14.457,151.54,151.45,0.17]
[1718250907548,14.457,151.54,151.42,16.0198]
[1718250907549,8.37,151.53,151.42,16.0198]
[1718250907748,8.37,151.53,151.47,8.37]
[1718250908572,6.087,151.54,151.5,8.37]
[1718250909288,15.7253,151.55,151.46,2.4428]
[1718250909452,9.90284162,151.57,151.54,8.37]
[1718250909653,8.37,151.57,151.52,8.37]
[1718250910194,8.37,151.57,151.51,8.37]
[1718250910491,8.37,151.57,151.48,0.17]
[1718250910780,8.37,151.54,151.49,8.37]
[1718250910991,8.37,151.53,151.48,8.37]
[1718250912183,16.3456012,151.58,151.49,8.37]
[1718250912383,8.37,151.55,151.5,8.37]
[1718250913057,8.37,151.54,151.49,8.37]
[1718250913461,8.37,151.54,151.48,8.37]
[1718250913660,20.0,151.57,151.5,8.37]
[1718250913976,8.37,151.56,151.51,8.37]
[1718250914164,20.0,151.57,151.5,8.37]
[1718250914369,8.37,151.56,151.5,8.37]
[1718250915473,6.4422,151.58,151.53,8.37]
[1718250915674,14.8122,151.58,151.53,8.37]
[1718250916272,6.4422,151.58,151.53,8.37]
[1718250916460,14.8122,151.58,151.53,8.37]
[1718250916660,14.8122,151.58,151.52,8.37]
[1718250916964,14.8122,151.58,151.53,8.37]
[1718250917179,14.8122,151.58,151.44,33.48]
[1718250917397,8.37,151.57,151.52,8.37]
[1718250917884,6.4422,151.58,151.52,8.37]
[1718250918084,14.8122,151.58,151.53,8.37]
[1718250918264,6.4422,151.58,151.52,8.37]
[1718250918585,14.8122,151.58,151.53,8.37]
[1718250918834,8.37,151.57,151.52,8.37]
[1718250920161,8.37,151.56,151.51,8.37]
[1718250920867,8.37,151.54,151.43,57.21827817]
[1718250921080,0.17,151.57,151.49,8.37]
[1718250921260,8.37,151.55,151.5,8.37]
[1718250921599,8.37,151.55,151.44,33.48]
[1718250921769,8.37,151.55,151.5,8.37]
[1718250922467,0.17,151.57,151.45,0.17]
[1718250922678,8.37,151.55,151.5,8.37]
[1718250923484,6.4422,151.58,151.45,0.68]
[1718250923817,8.37,151.56,151.51,8.37]
[1718250925000,8.37,151.56,151.45,0.68]
[1718250925298,8.37,151.56,151.51,8.37]
[1718250926321,6.4422,151.58,151.51,8.37]
[1718250926501,8.37,151.57,151.52,8.37]
[1718250927684,8.37,151.56,151.51,8.37]
[1718250928184,8.37,151.57,151.52,8.37]
[1718250930108,6.4422,151.58,151.52,8.37]
[1718250930294,8.37,151.57,151.52,8.37]
[1718250930498,14.8122,151.58,151.52,8.37]
[1718250931412,6.4422,151.58,151.52,8.37]
[1718250931717,14.8122,151.58,151.52,8.37]
[1718250932998,8.37,151.57,151.52,8.37]
[1718250933991,6.4422,151.58,151.52,8.37]
[1718250934201,6.4422,151.58,151.53,8.37]
[1718250934586,6.4422,151.58,151.54,8.37]
[1718250934827,16.29332342,151.62,151.57,8.37]
[1718250935112,16.292293,151.62,151.58,8.37]
[1718250935312,6.3915,151.62,151.59,8.37]
[1718250935909,6.3915,151.62,151.52,0.17]
[1718250936099,6.3915,151.62,151.59,8.37]
[1718250936612,6.3915,151.62,151.52,34.16]
[1718250936613,6.3915,151.62,151.58,8.37]
[1718250937702,6.3915,151.62,151.52,34.16]
[1718250937889,8.37,151.6,151.48,22.2716]